bitfinex-derivatives/quotes_SOLF0:USTF0_20250328
["timestamp","ask_amount","ask_price","bid_price","bid_amount"]
[1743165436372,0.0522932,131.03,131.0,7.68433129]
[1743165436571,0.0522932,131.03,131.01,3.9883]
[1743165437070,0.0522932,131.03,131.01,11.6241]
[1743165437370,41.9592,131.12,131.01,28.57607309]
[1743165437568,7.6316,131.09,131.04,7.634]
[1743165437959,7.6316,131.09,131.03,58.40777309]
[1743165438570,0.0510296,131.07,131.05,0.05588927]
[1743165439373,0.0510296,131.07,131.05,7.68938927]
[1743165439670,0.0510296,131.07,131.05,0.05588927]
[1743165440975,7.6834296,131.07,131.05,0.05588927]
[1743165441474,0.0510296,131.07,131.05,0.05588927]
[1743165442482,7.6329,131.06,131.05,0.05588927]
[1743165443679,0.0510296,131.07,131.0,259.5362]
[1743165443976,8.3061,131.09,131.0,251.9]
[1743165444568,24.58777309,131.12,131.0,276.48777309]
[1743165444768,33.46,131.12,131.04,24.58777309]
[1743165444973,7.631,131.1,131.07,7.6319]
[1743165445173,33.46,131.12,131.07,7.6319]
[1743165445368,33.46,131.12,131.05,37.5713]
[1743165445573,7.6315,131.09,131.06,7.6327]
[1743165445975,0.05670424,131.09,131.07,7.632]
[1743165446779,0.05670424,131.09,131.06,0.05302297]
[1743165447378,7.68800424,131.09,131.06,7.68582297]
[1743165448174,0.05670424,131.09,131.07,7.6322]
[1743165448374,0.05670424,131.09,131.06,0.05302297]
[1743165448677,7.68800424,131.09,131.06,7.68542297]
[1743165448978,0.05670424,131.09,131.06,24.64079606]
[1743165449183,7.6297,131.12,131.09,7.631]
[1743165449480,33.28,131.17,131.07,4.0701]
[1743165449682,24.58777309,131.16,131.07,11.7024]
[1743165450287,0.05818806,131.13,131.1,0.05573362]
[1743165450472,33.33818806,131.13,131.1,0.05573362]
[1743165450782,7.6324,131.07,131.05,4.1313]
[1743165451170,33.28,131.13,131.05,4.1313]
[1743165451876,0.05199838,131.1,131.08,0.05721448]
[1743165452877,0.05199838,131.1,131.09,7.6312]
[1743165453180,0.05199838,131.1,131.08,0.05721448]
[1743165453581,0.05199838,131.1,131.09,7.6312]
[1743165454081,33.28,131.17,131.08,24.64498757]
[1743165454277,33.28,131.17,131.07,3.9819]
[1743165454485,7.631,131.1,131.07,11.614]
[1743165454981,24.58777309,131.16,131.07,3.9819]
[1743165455181,7.6318,131.08,131.07,0.04911535]
[1743165455380,24.58777309,131.16,131.06,33.28]
[1743165455585,7.6321,131.08,131.06,33.33704687]
[1743165455776,7.6321,131.08,131.06,33.28]
[1743165455973,7.68178464,131.08,131.06,33.33405267]
[1743165456177,7.6324,131.07,131.06,0.05405267]
[1743165456782,32.20777309,131.07,130.95,158.02816908]
[1743165456986,24.58777309,131.01,130.95,124.74816908]
[1743165457186,24.58777309,130.99,130.95,124.74816908]
[1743165457386,24.58777309,130.97,130.94,190.06514784]
[1743165457584,24.58777309,130.95,130.93,259.89201891]
[1743165457885,7.6399,130.94,130.93,259.94098524]
[1743165458486,7.6399,130.94,130.93,0.04896633]
[1743165459187,7.6421,130.91,130.84,33.28]
[1743165459487,33.28,130.92,130.84,33.28]
[1743165459788,33.28,130.91,130.84,33.28]
[1743165459979,33.28,130.91,130.82,233.29237021]
[1743165460176,33.28,130.91,130.82,208.70459712]
[1743165460374,0.04915703,130.88,130.86,0.05748034]
[1743165461182,33.28,130.87,130.86,0.05748034]
[1743165461984,65.50777309,130.87,130.77,8.1358]
[1743165462184,57.86777309,130.87,130.77,15.7853]
[1743165462686,7.6462,130.84,130.77,4.0267]
[1743165462887,33.28,130.83,130.77,4.0267]
[1743165463087,33.28,130.83,130.79,0.05045581]
[1743165463088,0.05565707,130.82,130.79,0.05045581]
[1743165463579,24.58777309,130.81,130.7,8.16]
[1743165463782,7.6503,130.77,130.7,4.0509]
[1743165464087,33.3,130.76,130.65,57.88777309]
[1743165464282,40.9505,130.76,130.68,7.6547]
[1743165464488,33.3,130.76,130.65,86.58777309]
[1743165464888,0.05303516,130.72,130.69,0.04947065]
[1743165465092,33.35303516,130.72,130.69,0.04947065]
[1743165466690,41.00623516,130.72,130.64,15.6763]
[1743165466888,73.62954082,130.72,130.64,7.6574]
[1743165467085,73.57650566,130.72,130.64,7.6574]
[1743165467278,73.57650566,130.72,130.58,8.4047]
[1743165467479,40.27650566,130.7,130.59,41.68282149]
[1743165467684,7.6551,130.69,130.61,7.6588]
[1743165467883,7.6551,130.69,130.59,40.27650566]
[1743165467884,0.05801268,130.66,130.63,0.04886171]
[1743165468386,0.05801268,130.66,130.65,7.6569]
[1743165468790,33.32,130.71,130.63,40.32536737]
[1743165468990,33.32,130.71,130.63,40.27650566]
[1743165469191,33.32,130.71,130.65,40.27650566]
[1743165469393,7.654,130.7,130.64,7.6571]
[1743165469586,43.71568075,130.71,130.64,7.6571]
[1743165469889,43.71568075,130.71,130.61,73.59650566]
[1743165470197,0.05452913,130.69,130.66,0.05268625]
[1743165470590,0.05452913,130.69,130.68,7.6551]
[1743165471084,10.39568075,130.71,130.7,7.654]
[1743165471398,114.35248832,130.72,130.66,3.923]
[1743165471583,114.35248832,130.72,130.67,40.27650566]
[1743165471787,33.34,130.76,130.69,40.27650566]
[1743165472295,0.05797073,130.74,130.71,0.05347028]
[1743165472991,41.47233993,130.82,130.73,40.27650566]
[1743165473389,33.34,130.81,130.73,40.27650566]
[1743165473783,33.34,130.81,130.74,33.34]
[1743165473983,0.05281458,130.78,130.76,40.32531283]
[1743165474383,73.61650566,130.84,130.74,73.61650566]
[1743165474586,0.0569125,130.78,130.76,0.05054839]
[1743165475093,0.0519987,130.78,130.76,0.05481496]
[1743165477587,7.6499,130.77,130.76,0.05481496]
[1743165477790,0.0519987,130.78,130.7,256.4932]
[1743165477991,73.61650566,130.8,130.7,256.4932]
[1743165478591,73.61650566,130.8,130.7,4.1732]
[1743165478793,40.27650566,130.78,130.66,33.34]
[1743165478990,0.0485012,130.76,130.74,0.05340198]
[1743165479191,33.34,130.75,130.71,0.05508345]
[1743165479493,40.27650566,130.74,130.63,3.9124]
[1743165479694,40.32468766,130.74,130.72,0.05360941]
[1743165479899,7.6524,130.73,130.67,7.6553]
[1743165480099,7.6524,130.73,130.72,0.04993646]
[1743165480394,0.05687379,130.74,130.71,0.05222978]
[1743165480585,7.6525,130.73,130.66,40.27650566]
[1743165480788,0.04862415,130.74,130.71,0.05832216]
[1743165481096,0.05513512,130.74,130.72,7.6524]
[1743165481294,0.05513512,130.74,130.71,0.05830571]
[1743165481499,0.05513512,130.74,130.71,4.16780571]
[1743165482198,0.05513512,130.74,130.71,0.05830571]
[1743165482694,7.6522,130.73,130.71,0.05830571]
[1743165483202,7.6544,130.7,130.67,4.0045]
[1743165483396,33.36,130.75,130.67,4.0045]
[1743165483797,33.36,130.75,130.7,7.6536]
[1743165484191,33.36,130.75,130.68,40.27650566]
[1743165484400,0.05827479,130.74,130.71,7.6276395]
[1743165484601,0.05827479,130.74,130.69,4.198]
[1743165484998,0.05827479,130.74,130.7,40.27650566]
[1743165485204,0.05827479,130.74,130.7,135.63650566]
[1743165485596,0.05827479,130.74,130.71,0.05408083]
[1743165486402,0.05827479,130.74,130.71,7.70728083]
[1743165487406,0.05827479,130.74,130.71,0.05408083]
[1743165487610,7.6496,130.78,130.72,40.27650566]
[1743165487814,31.18704227,130.8,130.72,29.66877057]
[1743165488006,31.18704227,130.8,130.74,7.6512]
[1743165488201,31.18704227,130.8,130.72,29.66877057]
[1743165488404,31.18704227,130.8,130.74,7.6514]
[1743165488609,31.18704227,130.8,130.72,29.66877057]
[1743165488811,0.05029435,130.78,130.76,0.05334264]
[1743165489213,0.05029435,130.78,130.76,4.264e-05]
[1743165489412,33.36,130.77,130.76,4.264e-05]
[1743165489616,41.0099,130.77,130.76,4.264e-05]
[1743165491114,0.05029435,130.78,130.76,4.264e-05]
[1743165491516,0.05029435,130.78,130.77,7.6499]
[1743165492217,7.6479,130.81,130.78,7.649]
[1743165492522,7.6472,130.82,130.76,4.264e-05]
[1743165492717,37.2502,130.85,130.75,62.0]
[1743165492718,31.18704227,130.83,130.78,7.649]
[1743165492915,31.18704227,130.83,130.75,62.0]
[1743165493116,7.6472,130.82,130.75,62.0]
[1743165493319,7.6472,130.82,130.79,7.6484]
[1743165493518,0.04932865,130.8,130.79,7.6484]
[1743165493717,31.18704227,130.83,130.78,73.61650566]
[1743165493919,31.18704227,130.83,130.78,33.34]
[1743165494818,0.05765122,130.82,130.79,0.0546467]
[1743165495324,31.18704227,130.83,130.8,40.27650566]
[1743165495630,11.71084227,130.83,130.82,7.6469]
[1743165495827,5.21894227,130.86,130.8,40.27650566]
[1743165496626,0.05459454,130.84,130.82,0.05407183]
[1743165496823,7.70059454,130.84,130.82,0.05407183]
[1743165497023,0.05459454,130.84,130.82,0.05407183]
[1743165497726,0.05459454,130.84,130.82,33.39407183]
[1743165497928,0.05459454,130.84,130.83,7.6464]
[1743165498232,109.50676908,130.89,130.86,40.27650566]
[1743165498522,81.02716908,130.89,130.88,47.91990566]
[1743165498722,81.02716908,130.89,130.88,7.6434]
[1743165499123,81.02716908,130.89,130.86,33.34]
[1743165499317,35.06948001,130.9,130.86,33.34]
[1743165499516,35.11855614,130.9,130.87,0.0549887]
[1743165499721,35.11855614,130.9,130.89,7.6429]
[1743165500221,35.11855614,130.9,130.87,0.0549887]
[1743165500621,76.08125614,130.9,130.87,0.0549887]
[1743165501021,7.6434,130.88,130.83,33.32]
[1743165501216,72.36015614,130.9,130.83,33.32]
[1743165501427,72.31108001,130.9,130.83,33.32]
[1743165501727,37.2416,130.9,130.83,33.32]
[1743165502227,0.05195466,130.88,130.86,7.6443]
[1743165502625,0.05195466,130.88,130.85,0.05206772]
[1743165502837,0.05195466,130.88,130.87,7.644]
[1743165503030,3.9216,130.95,130.87,81.23650566]
[1743165503233,4.0074,130.96,130.89,40.27650566]
[1743165504332,0.05079701,130.94,130.91,0.05615609]
[1743165504533,0.05079701,130.94,130.93,7.6405]
[1743165506433,0.05079701,130.94,130.91,0.05615609]
[1743165507236,0.05079701,130.94,130.91,7.69745609]
[1743165507426,0.05079701,130.94,130.91,0.05615609]
[1743165508229,0.05079701,130.94,130.93,7.6405]
[1743165510533,0.05079701,130.94,130.91,0.05615609]
[1743165511640,0.05079701,130.94,130.92,7.641]
[1743165511937,0.05079701,130.94,130.91,0.05615609]
[1743165512334,0.05079701,130.94,130.91,33.35615609]
[1743165512734,7.69079701,130.94,130.91,0.05615609]
[1743165513532,7.6406,130.93,130.91,0.05615609]
[1743165513734,0.05079701,130.94,130.91,0.05615609]
[1743165514135,4.30139701,130.94,130.91,0.05615609]
[1743165515336,7.6409,130.93,130.91,0.05615609]
[1743165515541,4.30139701,130.94,130.86,40.27650566]
[1743165515836,4.256,130.93,130.85,252.2]
[1743165516839,0.05813671,130.9,130.88,0.04895057]
[1743165517041,73.63464237,130.9,130.79,292.33650566]
[1743165517241,73.57650566,130.9,130.79,325.63650566]
[1743165517435,7.6455,130.85,130.79,325.63650566]
[1743165517640,33.3,130.86,130.79,252.06]
[1743165518041,33.3,130.86,130.84,7.6457]
[1743165518234,33.3,130.89,130.83,40.27650566]
[1743165518441,33.3,130.91,130.83,40.27650566]
[1743165518742,4.236,130.94,130.85,40.27650566]
[1743165518935,4.236,130.94,130.86,24.70504312]
[1743165519138,7.6411,130.92,130.88,7.6432]
[1743165519334,4.236,130.94,130.84,24.70504312]
[1743165519639,7.6432,130.89,130.85,7.6448]
[1743165519939,7.6432,130.89,130.88,0.05483807]
[1743165520240,0.05303693,130.9,130.84,33.3]
[1743165520541,0.05303693,130.9,130.87,0.04916486]
[1743165520742,0.05303693,130.9,130.88,7.6434]
[1743165521044,0.05303693,130.9,130.87,0.04916486]
[1743165521244,0.05303693,130.9,130.89,7.6429]
[1743165522049,0.05303693,130.9,130.88,7.6431]
[1743165522846,0.05303693,130.9,130.87,0.04916486]
[1743165523047,7.69563693,130.9,130.87,0.04916486]
[1743165523246,0.05303693,130.9,130.87,0.04916486]
[1743165524248,0.05303693,130.9,130.87,7.69286486]
[1743165524547,0.05303693,130.9,130.87,0.04916486]
[1743165524947,7.6432,130.89,130.87,0.04916486]
[1743165525148,0.05303693,130.9,130.87,0.04916486]
[1743165525449,7.6434,130.88,130.87,0.04916486]
[1743165526553,28.60734312,130.89,130.76,58.00504312]
[1743165526844,7.6456,130.85,130.81,7.6472]
[1743165527051,4.3257,130.87,130.78,24.70504312]
[1743165527645,0.0551184,130.84,130.81,0.05553867]
[1743165528051,0.0551184,130.84,130.82,7.6467]
[1743165528948,7.7011184,130.84,130.81,7.70273867]
[1743165529146,0.0551184,130.84,130.81,0.05553867]
[1743165529636,33.3551184,130.84,130.75,33.3]
[1743165529843,40.18456947,130.83,130.73,73.48456947]
[1743165530047,7.6493,130.79,130.75,7.6507]
[1743165530243,40.18456947,130.83,130.73,73.48456947]
[1743165530438,4.3257,130.87,130.71,252.08]
[1743165530439,40.18456947,130.81,130.71,252.08]
[1743165530645,7.6516,130.75,130.71,259.7331]
[1743165530844,0.05434731,130.77,130.71,252.08]
[1743165531043,7.6495,130.78,130.74,7.6515]
[1743165531248,37.3377,130.8,130.71,252.08]
[1743165531249,0.04866892,130.75,130.73,40.18456947]
[1743165531449,37.3377,130.8,130.73,40.18456947]
[1743165531651,7.649,130.79,130.73,40.23395655]
[1743165531844,0.05690503,130.78,130.73,40.23395655]
[1743165532251,0.05690503,130.78,130.77,7.6499]
[1743165533049,0.05690503,130.78,130.76,0.05110603]
[1743165533651,0.05690503,130.78,130.77,7.6499]
[1743165535149,0.05690503,130.78,130.76,7.70130603]
[1743165535551,0.05690503,130.78,130.77,7.6499]
[1743165540754,0.05690503,130.78,130.76,0.05110603]
[1743165541156,0.05690503,130.78,130.77,7.6499]
[1743165545073,5.03e-06,130.78,130.77,7.6499]
[1743165545268,5.03e-06,130.78,130.77,47.83446947]
[1743165546475,5.03e-06,130.78,130.77,55.47446947]
[1743165546973,5.03e-06,130.78,130.77,47.83446947]
[1743165548062,4.2312,130.86,130.77,47.82456947]
[1743165548273,4.2312,130.86,130.79,40.18456947]
[1743165548572,40.18456947,130.92,130.81,40.18456947]
[1743165548778,37.4263,130.91,130.82,33.3]
[1743165548971,40.18456947,130.9,130.82,33.3]
[1743165549177,40.18456947,130.88,130.77,40.18456947]
[1743165549368,33.34971233,130.87,130.84,0.05826636]
[1743165549569,7.6467,130.83,130.79,7.6483]
[1743165549983,7.6467,130.83,130.77,73.48456947]
[1743165549984,7.70348833,130.82,130.8,0.05098254]
[1743165550272,0.05648833,130.82,130.8,0.05098254]
[1743165550579,7.6475,130.81,130.8,0.05098254]
[1743165552174,0.05648833,130.82,130.74,33.3]
[1743165552175,7.6487,130.79,130.74,33.3]
[1743165552375,33.3,130.83,130.74,33.3]
[1743165552678,7.6488,130.79,130.76,7.6504]
[1743165552980,4.1221,130.82,130.74,33.3]
[1743165553181,7.6492,130.79,130.75,69.6508]
[1743165553376,7.70096025,130.79,130.77,0.05326246]
[1743165554284,7.6493,130.78,130.77,0.05326246]
[1743165555382,0.05176025,130.79,130.77,0.05326246]
[1743165555583,33.3,130.86,130.77,33.35326246]
[1743165555776,33.3,130.86,130.8,7.6479]
[1743165555971,7.647,130.82,130.77,58.04585081]
[1743165556177,33.3,130.86,130.77,33.3]
[1743165556380,7.6468,130.83,130.8,7.648]
[1743165556578,33.3,130.86,130.77,33.3]
[1743165556779,0.05181822,130.83,130.8,0.05288755]
[1743165556975,7.647,130.82,130.8,0.05288755]
[1743165557182,0.05181822,130.83,130.8,0.05288755]
[1743165558184,0.05181822,130.83,130.82,7.6469]
[1743165558575,0.05181822,130.83,130.81,33.3]
[1743165558774,7.6475,130.81,130.8,0.05288755]
[1743165559282,7.649,130.79,130.76,7.6503]
[1743165559678,33.3,130.81,130.73,58.04585081]
[1743165560092,33.3,130.81,130.75,24.74585081]
[1743165560381,0.05374074,130.78,130.77,7.6496]
[1743165560680,4.3275,130.82,130.76,0.05407135]
[1743165560884,0.05825546,130.79,130.76,0.05407135]
[1743165561087,0.05825546,130.79,130.78,7.6493]
[1743165562283,7.6461,130.84,130.81,7.6473]
[1743165562486,33.3,130.85,130.77,58.04585081]
[1743165562684,33.3,130.85,130.78,62.0]
[1743165562886,7.6458,130.84,130.78,62.0]
[1743165563588,0.05264678,130.82,130.81,7.6474]
[1743165563887,24.79849759,130.82,130.71,252.08]
[1743165564185,37.5755,130.81,130.74,7.6514]
[1743165564384,7.6496,130.78,130.74,7.6514]
[1743165564582,37.5755,130.81,130.74,7.6514]
[1743165565088,0.05789874,130.79,130.76,0.05006959]
[1743165565578,7.6499,130.77,130.76,0.05006959]
[1743165566181,0.05789874,130.79,130.72,7.6527]
[1743165566380,24.74585081,130.78,130.71,252.08]
[1743165566581,33.3,130.77,130.7,84.01330357]
[1743165566782,7.6519,130.74,130.71,7.653]
[1743165566982,33.3,130.77,130.66,25.10365081]
[1743165567183,33.3,130.77,130.67,33.3]
[1743165567384,0.05866248,130.73,130.7,0.05679642]
[1743165567897,0.05866248,130.73,130.72,7.6528]
[1743165568080,0.05866248,130.73,130.7,0.05679642]
[1743165570187,0.05866248,130.73,130.72,7.6528]
[1743165572693,4.308,130.79,130.72,24.74585081]
[1743165572894,7.65,130.77,130.72,24.74585081]
[1743165573100,4.308,130.79,130.72,24.74585081]
[1743165573389,7.6496,130.78,130.72,24.74585081]
[1743165573588,0.0543227,130.76,130.75,7.6507]
[1743165575194,0.0543227,130.76,130.74,7.70247761]
[1743165575397,0.0543227,130.76,130.74,0.05117761]
[1743165576189,7.651,130.75,130.74,0.05117761]
[1743165576390,0.0543227,130.76,130.74,0.05117761]
[1743165577389,0.0543227,130.76,130.75,7.651]
[1743165577589,0.0543227,130.76,130.74,0.05117761]
[1743165578195,0.0543227,130.76,130.75,7.651]
[1743165579296,0.0543227,130.76,130.74,7.70257761]
[1743165580402,0.0543227,130.76,130.75,7.651]
[1743165581100,0.0543227,130.76,130.74,0.05117761]
[1743165581495,7.651,130.75,130.74,0.05117761]
[1743165582298,7.651,130.75,130.72,7.6524]
[1743165582698,0.0543227,130.76,130.7,7.6536]
[1743165582699,33.3343227,130.76,130.7,7.6536]
[1743165582897,3.9659,130.75,130.7,7.6536]
[1743165583092,3.9659,130.75,130.67,33.28]
[1743165583296,3.9659,130.75,130.68,24.74585081]
[1743165583609,0.05486396,130.73,130.71,0.05480359]
[1743165583795,0.05486396,130.73,130.72,7.6528]
[1743165587090,0.05486396,130.73,130.71,15.53263722]
[1743165587289,0.05486396,130.73,130.71,48.81263722]
[1743165588002,0.05486396,130.73,130.72,7.6528]
[1743165588303,0.05486396,130.73,130.72,69.6528]
[1743165588802,11.9571,130.79,130.75,7.6508]
[1743165589001,4.308,130.79,130.75,7.6508]
[1743165589301,11.957,130.79,130.75,7.6508]
[1743165589504,4.308,130.79,130.73,15.47783363]
[1743165589802,0.05800182,130.77,130.75,15.53237443]
[1743165590195,0.05800182,130.77,130.76,7.6499]
[1743165590603,15.47783363,130.83,130.77,7.6493]
[1743165590905,33.28,130.83,130.75,48.75783363]
[1743165591294,33.28,130.83,130.76,7.6501]
[1743165591497,7.6495,130.78,130.75,15.47783363]
[1743165591702,7.6495,130.78,130.75,40.9305]
[1743165591903,7.7075755,130.78,130.75,40.97878446]
[1743165592201,0.0580755,130.78,130.75,33.32828446]
[1743165592401,0.0580755,130.78,130.75,0.04828446]
[1743165592701,0.0580755,130.78,130.75,7.69928446]
[1743165592901,0.0580755,130.78,130.75,0.04828446]
[1743165594301,0.0580755,130.78,130.77,7.6499]
[1743165594604,0.0580755,130.78,130.75,0.04828446]
[1743165594803,0.0580755,130.78,130.76,7.6504]
[1743165594999,0.0580755,130.78,130.75,0.04828446]
[1743165595393,7.6501,130.77,130.75,0.04828446]
[1743165595699,0.0580755,130.78,130.75,0.04828446]
[1743165596203,0.0580755,130.78,130.75,7.69918446]
[1743165596606,0.0580755,130.78,130.75,0.04828446]
[1743165597401,0.0580755,130.78,130.77,7.6499]
[1743165597601,0.0580755,130.78,130.75,0.04828446]
[1743165597801,0.0580755,130.78,130.76,7.6501]
[1743165598207,0.0580755,130.78,130.75,0.04828446]
[1743165599605,7.6505,130.76,130.75,0.04828446]
[1743165599803,7.6505,130.76,130.71,33.26]
[1743165600003,7.6505,130.76,130.73,7.6517]
[1743165600410,4.0379,130.77,130.72,15.47783363]
[1743165600704,4.0379,130.77,130.75,7.6507]
[1743165600901,0.05587662,130.76,130.73,0.05255856]
[1743165601102,0.05587662,130.76,130.75,7.651]
[1743165601299,0.05587662,130.76,130.74,15.47783363]
[1743165601504,0.05587662,130.76,130.73,0.05255856]
[1743165602003,7.6527,130.73,130.69,252.32]
[1743165602208,7.6527,130.73,130.69,259.9744]
[1743165602409,4.246,130.75,130.69,259.9744]
[1743165602607,4.246,130.75,130.67,15.47783363]
[1743165602608,19.72383363,130.75,130.67,15.47783363]
[1743165602806,15.47783363,130.73,130.65,99.4911372]
[1743165603204,0.05393968,130.72,130.7,0.05567575]
[1743165603406,15.47783363,130.71,130.65,84.01330357]
[1743165603613,15.47783363,130.69,130.65,84.01330357]
[1743165603910,7.6563,130.66,130.65,84.01330357]
[1743165604106,4.2617,130.68,130.65,71.02810357]
[1743165604305,7.6561,130.67,130.65,71.02810357]
[1743165604507,4.31011762,130.68,130.65,71.07897364]
[1743165604708,0.04841762,130.68,130.65,133.07897364]
[1743165605010,0.04841762,130.68,130.67,7.6557]
[1743165605615,33.26,130.73,130.7,7.6538]
[1743165605816,33.26,130.76,130.68,15.47783363]
[1743165606120,7.6514,130.75,130.68,48.73783363]
[1743165606316,33.26,130.76,130.7,7.6535]
[1743165606614,7.6516,130.74,130.68,48.73783363]
[1743165606802,33.26,130.76,130.72,0.05306337]
[1743165607007,0.05424862,130.74,130.72,0.05306337]
[1743165607413,0.05424862,130.74,130.73,7.6522]
[1743165607806,0.05424862,130.74,130.72,0.05306337]
[1743165608507,0.05424862,130.74,130.73,7.6522]
[1743165608905,42.24754551,130.82,130.72,58.09349402]
[1743165609114,75.50754551,130.82,130.74,24.78043065]
[1743165609311,33.26,130.82,130.74,24.78043065]
[1743165609509,7.6478,130.81,130.74,24.78043065]
[1743165609705,10.54876289,130.85,130.78,24.78043065]
[1743165609910,18.19426289,130.85,130.78,58.04043065]
[1743165610112,0.05571168,130.83,130.82,7.6469]
[1743165610311,10.54876289,130.85,130.82,24.78043065]
[1743165610514,10.54876289,130.85,130.82,58.04043065]
[1743165610815,10.54876289,130.85,130.84,7.6458]
[1743165611217,83.53895761,130.87,130.84,24.78043065]
[1743165611514,125.36299462,130.88,130.86,24.78043065]
[1743165611709,207.91361513,130.89,130.86,58.04043065]
[1743165612212,259.89201891,130.9,130.87,62.0]
[1743165612213,0.05114048,130.88,130.87,62.0]
[1743165612415,0.05114048,130.88,130.86,0.05419202]
[1743165612615,24.83157113,130.88,130.77,33.26]
[1743165612923,4.2283,130.87,130.77,58.04043065]
[1743165613217,7.6453,130.85,130.77,58.04043065]
[1743165613413,4.2283,130.87,130.77,58.04043065]
[1743165613805,0.05621764,130.83,130.81,0.05477174]
[1743165614005,33.29621764,130.83,130.81,0.05477174]
[1743165614206,33.29621764,130.83,130.75,277.16043065]
[1743165614406,7.6483,130.8,130.75,411.31346818]
[1743165614613,7.6483,130.8,130.75,403.66246818]
[1743165614825,33.24,130.83,130.75,403.66246818]
[1743165615012,33.24,130.83,130.75,378.88203753]
[1743165615316,0.0486498,130.8,130.78,0.05611278]
[1743165615519,4.2283,130.87,130.79,24.78043065]
[1743165615717,37.55998862,130.92,130.82,24.78043065]
[1743165615718,33.24,130.91,130.82,24.78043065]
[1743165615920,37.4305,130.91,130.82,58.02043065]
[1743165616317,37.4305,130.91,130.82,33.24]
[1743165616716,0.04960927,130.88,130.85,0.05560689]
[1743165617623,33.24,130.87,130.78,58.02043065]
[1743165617823,7.6479,130.81,130.76,7.6501]
[1743165618017,33.24,130.83,130.76,126.50203753]
[1743165618911,0.05499807,130.81,130.78,0.04924817]
[1743165619121,4.1905,130.85,130.79,24.78043065]
[1743165619526,33.24,130.88,130.79,24.78043065]
[1743165619916,4.2311,130.89,130.79,58.02043065]
[1743165620117,40.8835,130.88,130.83,7.6461]
[1743165620322,0.05664809,130.85,130.83,0.05842652]
[1743165621217,0.05664809,130.85,130.84,7.6457]
[1743165621426,33.24,130.93,130.83,73.4735958]
[1743165621628,33.24,130.93,130.85,40.17516928]
[1743165621924,33.24,130.93,130.83,325.67516928]
[1743165622327,73.41516928,130.93,130.83,285.5]
[1743165622516,0.05398291,130.89,130.87,0.04905681]
[1743165622713,7.6437,130.88,130.87,0.04905681]
[1743165623526,0.05398291,130.89,130.87,0.04905681]
[1743165624127,0.05398291,130.89,130.87,7.69265681]
[1743165624526,0.05398291,130.89,130.88,7.6434]
[1743165624914,0.05398291,130.89,130.87,0.04905681]
[1743165625118,0.05398291,130.89,130.87,7.69255681]
[1743165625821,0.05398291,130.89,130.87,0.04905681]
[1743165626329,0.05398291,130.89,130.87,7.69305681]
[1743165627027,0.05398291,130.89,130.87,0.04905681]
[1743165627626,7.6434,130.88,130.87,0.04905681]
[1743165628027,0.05398291,130.89,130.83,252.26]
[1743165628227,4.14018291,130.89,130.83,252.26]
[1743165628930,44.31535219,130.89,130.78,84.20622531]
[1743165629121,44.26136928,130.89,130.85,0.05845629]
[1743165629429,0.05874066,130.85,130.78,117.42622531]
[1743165629628,44.26136928,130.89,130.78,117.42622531]
[1743165630327,40.17516928,130.87,130.78,91.85552531]
[1743165630535,40.22955733,130.85,130.82,0.04925139]
[1743165630725,40.22955733,130.85,130.78,84.20622531]
[1743165631032,7.6483,130.8,130.76,33.22]
[1743165631231,40.17516928,130.85,130.76,33.22]
[1743165631430,7.6475,130.82,130.78,7.649]
[1743165631625,40.17516928,130.85,130.78,7.649]
[1743165631831,0.05262506,130.81,130.79,0.05595399]
[1743165632725,7.6481,130.8,130.79,0.05595399]
[1743165632927,0.05262506,130.81,130.79,0.05595399]
[1743165633431,0.05262506,130.81,130.8,7.6481]
[1743165634627,0.05262506,130.81,130.79,0.05595399]
[1743165634836,7.6481,130.8,130.79,0.05595399]
[1743165635032,0.05262506,130.81,130.79,0.05595399]
[1743165637134,7.6481,130.8,130.79,0.05595399]
[1743165637535,0.05262506,130.81,130.79,0.05595399]
[1743165637728,7.70042506,130.81,130.79,0.05595399]
[1743165637929,0.05262506,130.81,130.79,0.05595399]
[1743165638130,7.70042506,130.81,130.79,0.05595399]
[1743165638331,0.05262506,130.81,130.79,0.05595399]
[1743165638531,0.05262506,130.81,130.79,33.27595399]
[1743165638727,0.05262506,130.81,130.8,7.6481]
[1743165640134,0.05262506,130.81,130.79,33.27595399]
[1743165640634,0.05262506,130.81,130.79,0.05595399]